bitfinex/quotes_BTCUSD_20240729
["timestamp","ask_amount","ask_price","bid_price","bid_amount"]
[1722231536235,0.01,69817.0,69816.0,1.827138]
[1722231536673,0.03348247,69817.0,69816.0,1.855138]
[1722231536879,0.03348247,69817.0,69816.0,1.841138]
[1722231537299,0.03348247,69817.0,69816.0,1.801138]
[1722231537502,0.03348247,69817.0,69816.0,1.841138]
[1722231537933,0.011,69817.0,69816.0,1.841138]
[1722231538111,0.011,69817.0,69816.0,1.827138]
[1722231538308,0.012,69817.0,69816.0,1.801138]
[1722231538509,0.012,69817.0,69816.0,1.855138]
[1722231538738,0.012,69817.0,69816.0,1.82373988]
[1722231539101,0.0118276,69817.0,69816.0,1.86373988]
[1722231539772,0.0138276,69817.0,69816.0,1.86373988]
[1722231539974,0.0118276,69817.0,69816.0,1.86373988]
[1722231541028,0.03431004,69817.0,69816.0,1.86373988]
[1722231541632,0.03431004,69817.0,69816.0,1.82373988]
[1722231541833,0.03431004,69817.0,69816.0,1.86373988]
[1722231542093,0.03431004,69817.0,69816.0,1.82373988]
[1722231542264,0.0118276,69817.0,69816.0,1.86373988]
[1722231543405,0.0118276,69817.0,69816.0,1.82373988]
[1722231543741,0.0118276,69817.0,69816.0,1.86373988]
[1722231544289,0.0118276,69817.0,69816.0,1.98281143]
[1722231544648,0.03430989,69817.0,69816.0,1.98281143]
[1722231545482,0.0118276,69817.0,69816.0,1.94281143]
[1722231546564,0.0118276,69817.0,69816.0,1.98281143]
[1722231546970,0.0118276,69817.0,69816.0,1.98280978]
[1722231548235,0.0037476,69817.0,69816.0,1.98280978]
[1722231548873,0.02622969,69817.0,69816.0,1.98280978]
[1722231550104,0.0037476,69817.0,69816.0,1.98280978]
[1722231550321,0.0037476,69817.0,69816.0,1.9828064]
[1722231550711,0.00808,69818.0,69817.0,1.0835974]
[1722231550855,0.00808,69818.0,69817.0,1.95051392]
[1722231552693,0.00908,69818.0,69817.0,1.96451392]
[1722231553985,0.00908,69818.0,69817.0,1.96451487]
[1722231554186,0.00908,69818.0,69817.0,1.8454474]
[1722231554383,0.01108,69818.0,69817.0,1.8454474]
[1722231554595,0.15128,69818.0,69817.0,1.8114474]
[1722231554800,0.15128,69818.0,69817.0,1.8594474]
[1722231554801,0.14928,69818.0,69817.0,1.8594474]
[1722231555002,0.15128,69818.0,69817.0,1.8594474]
[1722231555197,0.14928,69818.0,69817.0,1.8194474]
[1722231555467,0.15128,69818.0,69817.0,1.93851951]
[1722231556007,0.15128,69818.0,69817.0,1.8194474]
[1722231556707,0.15128,69818.0,69817.0,1.8114474]
[1722231556877,0.14928,69818.0,69817.0,1.8594474]
[1722231557288,0.15128,69818.0,69817.0,1.8114474]
[1722231557635,0.15128,69818.0,69817.0,1.8194474]
[1722231558047,0.15128,69818.0,69817.0,1.8594474]
[1722231558246,0.15128,69818.0,69817.0,1.8194474]
[1722231558449,0.14928,69818.0,69817.0,1.8194474]
[1722231558714,0.14928,69818.0,69817.0,1.8594474]
[1722231558921,0.1922655,69818.0,69817.0,1.8594474]
[1722231559099,0.21474788,69818.0,69817.0,1.97852141]
[1722231559323,0.21474788,69818.0,69817.0,1.97851986]
[1722231559451,0.21474788,69818.0,69817.0,1.8594474]
[1722231559655,0.21474788,69818.0,69817.0,1.7714474]
[1722231559869,0.21474788,69818.0,69817.0,1.8114474]
[1722231560445,0.23824063,69818.0,69817.0,1.5822774]
[1722231560648,0.23824063,69818.0,69817.0,1.5422774]
[1722231560975,0.17376238,69818.0,69817.0,1.5422774]
[1722231561183,0.25973338,69818.0,69817.0,1.5422774]
[1722231561391,0.25973338,69818.0,69817.0,1.3531074]
[1722231561392,0.17376238,69818.0,69817.0,1.3531074]
[1722231561594,0.17376238,69818.0,69817.0,1.3131074]
[1722231562605,0.17576238,69818.0,69817.0,1.3131074]
[1722231563213,0.17576238,69818.0,69817.0,1.1239374]
[1722231563416,0.05069351,69818.0,69817.0,2.1868474]
[1722231563618,0.00807,69821.0,69820.0,0.912]
[1722231563789,0.07067,69834.0,69823.0,0.911975]
[1722231563790,0.04302531,69827.0,69823.0,0.911975]
[1722231563986,0.04302531,69827.0,69823.0,2.50921284]
[1722231564223,0.18023329,69834.0,69823.0,2.250155]
[1722231564224,0.04302531,69828.0,69823.0,2.250155]
[1722231564425,0.04302531,69828.0,69823.0,2.36921185]
[1722231564824,0.04302531,69828.0,69823.0,2.52221185]
[1722231565230,0.04302531,69829.0,69823.0,2.52221185]
[1722231565833,0.04300983,69829.0,69823.0,2.52121185]
[1722231566032,0.04300983,69829.0,69823.0,2.06916185]
[1722231566239,0.04300643,69827.0,69823.0,2.073005]
[1722231566649,0.04300643,69827.0,69823.0,2.060005]
[1722231567041,0.04300643,69829.0,69823.0,2.088005]
[1722231567399,0.04300643,69829.0,69823.0,2.060005]
[1722231567743,0.04300643,69830.0,69823.0,2.19306161]
[1722231567941,0.04300643,69830.0,69823.0,2.29306161]
[1722231568170,0.04300643,69830.0,69823.0,2.174005]
[1722231568484,0.04300643,69832.0,69823.0,2.39306053]
[1722231569244,0.04300643,69833.0,69823.0,2.37906053]
[1722231569440,0.07067,69834.0,69823.0,2.260005]
[1722231569726,0.11365712,69834.0,69823.0,2.37905475]
[1722231570040,0.07154355,69833.0,69823.0,2.62220475]
[1722231570189,0.07154355,69833.0,69823.0,2.40160347]
[1722231570814,0.03054823,69824.0,69823.0,2.40160347]
[1722231571030,0.00807,69824.0,69823.0,2.41560347]
[1722231571402,0.00807,69824.0,69823.0,2.40160347]
[1722231571625,0.00807,69824.0,69823.0,2.41560347]
[1722231571837,0.00807,69824.0,69823.0,2.36360347]
[1722231572466,0.00807,69824.0,69823.0,2.34960347]
[1722231572673,0.00807,69824.0,69823.0,2.23055372]
[1722231572825,0.00807,69824.0,69823.0,2.36360336]
[1722231573026,0.00807,69824.0,69823.0,2.34960336]
[1722231573428,0.00807,69824.0,69823.0,2.36360336]
[1722231573628,0.00807,69824.0,69823.0,2.31560336]
[1722231574036,0.00807,69824.0,69823.0,2.37301136]
[1722231574404,0.0305482,69824.0,69823.0,2.37301136]
[1722231574603,0.0305482,69824.0,69823.0,1.74381172]
[1722231574715,0.0325482,69824.0,69823.0,1.74381172]
[1722231575320,0.0325482,69824.0,69823.0,1.68640372]
[1722231575321,0.0305482,69824.0,69823.0,1.68640372]
[1722231575540,0.0305482,69824.0,69823.0,1.58640372]
[1722231575736,0.0325482,69824.0,69823.0,1.57240372]
[1722231576140,0.0325482,69824.0,69823.0,1.65530372]
[1722231576412,0.00807,69824.0,69823.0,1.66930372]
[1722231576842,0.01007,69824.0,69823.0,1.66930372]
[1722231577048,0.00807,69824.0,69823.0,1.66930372]
[1722231577246,0.00807,69824.0,69823.0,1.99345372]
[1722231577403,0.00807,69824.0,69823.0,2.11250942]
[1722231577604,0.00807,69824.0,69823.0,2.11250922]
[1722231577826,0.00807,69824.0,69823.0,2.09850922]
[1722231578240,0.00807,69824.0,69823.0,2.11250922]
[1722231578809,0.00807,69824.0,69823.0,2.02450922]
[1722231579010,0.03054888,69824.0,69823.0,2.16450922]
[1722231579237,0.03054888,69824.0,69823.0,2.16450325]
[1722231579810,0.03054888,69824.0,69823.0,2.31560325]
[1722231580030,0.03054888,69824.0,69823.0,2.39140325]
[1722231580432,0.03054888,69824.0,69823.0,2.25140325]
[1722231580653,0.03054888,69824.0,69823.0,2.39140325]
[1722231580831,0.03054888,69824.0,69823.0,2.11250325]
[1722231582276,0.03054888,69824.0,69823.0,2.02450325]
[1722231582639,0.03054888,69824.0,69823.0,2.16250404]
[1722231582783,0.03054888,69824.0,69823.0,2.11250404]
[1722231583014,0.03054888,69824.0,69823.0,2.11250401]
[1722231583194,0.03054888,69824.0,69823.0,2.10130401]
[1722231583358,0.03054888,69824.0,69823.0,2.39240401]
[1722231583558,0.00807,69834.0,69823.0,2.39240401]
[1722231583559,0.00807,69834.0,69833.0,1.425113]
[1722231583803,0.00807,69834.0,69833.0,2.446921]
[1722231584034,0.00807,69834.0,69833.0,2.56595686]
[1722231584237,0.00807,69834.0,69833.0,2.71705686]
[1722231584643,0.00807,69834.0,69833.0,3.04617486]
[1722231585018,0.00807,69834.0,69833.0,2.81705686]
[1722231585286,0.00807,69834.0,69833.0,3.21460471]
[1722231585458,0.00807,69834.0,69833.0,2.770221]
[1722231585604,0.00807,69834.0,69833.0,2.88925079]
[1722231586011,0.00807,69834.0,69833.0,3.16836879]
[1722231586206,0.00807,69834.0,69833.0,2.88925079]
[1722231586448,0.00807,69834.0,69833.0,2.93925079]
[1722231586800,0.00807,69834.0,69833.0,3.16836879]
[1722231586966,0.00807,69834.0,69833.0,3.1703681]
[1722231587171,0.00807,69834.0,69833.0,2.9552501]
[1722231588082,0.00807,69834.0,69833.0,2.9532501]
[1722231588500,0.00807,69834.0,69833.0,2.9552501]
[1722231588659,0.00807,69834.0,69833.0,3.1983681]
[1722231589450,0.00807,69834.0,69833.0,3.2271281]
[1722231590252,0.00807,69834.0,69833.0,3.108099]
[1722231590485,0.00807,69834.0,69833.0,2.954099]
[1722231590691,0.00807,69834.0,69833.0,3.094099]
[1722231590887,0.00807,69834.0,69833.0,3.108099]
[1722231591308,0.00807,69834.0,69833.0,3.22712779]
[1722231592122,0.00807,69834.0,69833.0,3.2271267]
[1722231592523,0.00807,69834.0,69833.0,3.108099]
[1722231592726,0.00807,69834.0,69833.0,3.22712687]
[1722231592973,0.00807,69834.0,69833.0,3.21312687]
[1722231593128,0.00807,69845.0,69844.0,0.841783]
[1722231593306,0.00807,69845.0,69844.0,1.549523]
[1722231593496,0.00807,69845.0,69844.0,1.778604]
[1722231595627,0.00807,69845.0,69844.0,1.792604]
[1722231596211,0.00807,69845.0,69844.0,1.806604]
[1722231596617,0.0601,69848.0,69847.0,0.841752]
[1722231596823,0.0601,69848.0,69847.0,1.549482]
[1722231597886,0.0601,69848.0,69847.0,1.509482]
[1722231598122,0.0601,69848.0,69847.0,1.549482]
[1722231598498,0.0601,69848.0,69847.0,1.563482]
[1722231601537,0.0601,69848.0,69847.0,1.523482]
[1722231601740,0.1353,69848.0,69847.0,1.563482]
[1722231601981,0.1373,69848.0,69847.0,1.563482]
[1722231602337,0.1353,69848.0,69847.0,1.57207193]
[1722231602944,0.1353,69848.0,69847.0,1.53207193]
[1722231603152,0.1373,69848.0,69847.0,1.57207193]
[1722231603749,0.1403,69848.0,69847.0,1.34299993]
[1722231603949,0.1383,69848.0,69847.0,1.34299993]
[1722231604153,0.1353,69848.0,69847.0,1.58607193]
[1722231604356,0.1353,69848.0,69847.0,1.54607193]
[1722231604588,0.1353,69848.0,69847.0,1.58607193]
[1722231605134,0.1353,69848.0,69847.0,1.54607193]
[1722231605363,0.00807,69849.0,69848.0,0.878438]
[1722231605610,0.00767931,69849.0,69848.0,2.157336]
[1722231605964,0.00767931,69849.0,69848.0,2.27634579]
[1722231606170,0.00767931,69849.0,69848.0,2.37634579]
[1722231606824,0.00767931,69849.0,69848.0,2.25164579]
[1722231606995,0.00767931,69849.0,69848.0,1.878536]
[1722231608001,0.00767931,69849.0,69848.0,1.838536]
[1722231608205,0.00767931,69849.0,69848.0,1.878536]
[1722231608443,0.00767931,69849.0,69848.0,1.838536]
[1722231609024,0.00767931,69849.0,69848.0,1.885536]
[1722231609225,0.00767931,69849.0,69848.0,2.18934999]
[1722231609505,0.00767931,69849.0,69848.0,2.070336]
[1722231610132,0.00767931,69849.0,69848.0,2.18934999]
[1722231610329,0.00767931,69849.0,69848.0,2.18935]
[1722231610530,0.00767931,69849.0,69848.0,2.14135]
[1722231610758,0.00767931,69849.0,69848.0,2.18935]
[1722231610955,0.00767931,69849.0,69848.0,2.20335]
[1722231611148,0.00767931,69849.0,69848.0,2.15535]
[1722231611553,0.00767931,69849.0,69848.0,2.07255]
[1722231611793,0.00767931,69849.0,69848.0,2.15535012]
[1722231611950,0.00767931,69849.0,69848.0,2.11535012]
[1722231612151,0.00767931,69849.0,69848.0,2.10135012]
[1722231612502,0.00767931,69849.0,69848.0,2.14135012]
[1722231612671,0.08947931,69849.0,69848.0,2.14135012]
[1722231612871,0.08947931,69849.0,69848.0,2.15535012]
[1722231613273,0.14957931,69849.0,69848.0,2.10135012]
[1722231613477,0.14957931,69849.0,69848.0,2.022336]
[1722231613786,0.14957931,69849.0,69848.0,2.11535054]
[1722231613993,0.14957931,69849.0,69848.0,1.996336]
[1722231614162,0.14957931,69849.0,69848.0,2.15535054]
[1722231614384,0.14957931,69849.0,69848.0,2.11535054]
[1722231617157,0.15257931,69849.0,69848.0,1.3484]
[1722231617370,0.15457931,69849.0,69848.0,0.77573]
[1722231617581,0.15457931,69849.0,69848.0,1.119332]
[1722231617735,0.15457931,69849.0,69848.0,1.3484]
[1722231618343,0.15457931,69849.0,69848.0,1.3084]
[1722231618744,0.00767931,69849.0,69848.0,1.853536]
[1722231619365,0.00767931,69849.0,69848.0,1.939536]
[1722231619564,0.00767931,69849.0,69848.0,1.925536]
[1722231619767,0.00767931,69849.0,69848.0,1.937536]
[1722231620115,0.00767931,69849.0,69848.0,1.933536]
[1722231620561,0.00767931,69849.0,69848.0,1.899536]
[1722231620767,0.00767931,69849.0,69848.0,1.925536]
[1722231621024,0.00767931,69849.0,69848.0,1.899536]
[1722231621195,0.00767931,69849.0,69848.0,1.913536]
[1722231621733,0.00740952,69849.0,69848.0,1.913536]
[1722231622250,0.00740952,69849.0,69848.0,1.899536]
[1722231622416,0.00740952,69849.0,69848.0,1.913536]
[1722231622626,0.00740952,69849.0,69848.0,1.939536]
[1722231623035,0.00740952,69849.0,69848.0,1.953536]
[1722231623180,0.00740952,69849.0,69848.0,1.925536]
[1722231623386,0.00740952,69849.0,69848.0,1.939536]
[1722231623608,0.00740952,69849.0,69848.0,1.953536]
[1722231623809,0.00740952,69849.0,69848.0,1.925536]
[1722231624250,0.00740952,69849.0,69848.0,1.939536]
[1722231624402,0.00740952,69849.0,69848.0,1.925536]
[1722231625457,0.00740952,69849.0,69848.0,1.973536]
[1722231625689,0.00740952,69849.0,69848.0,1.885536]
[1722231626092,0.00740952,69849.0,69848.0,1.989536]
[1722231626316,0.00740952,69849.0,69848.0,2.003536]
[1722231626515,0.00807,69850.0,69849.0,1.223792]
[1722231626716,0.00807,69850.0,69849.0,2.27959192]
[1722231626857,0.00807,69850.0,69849.0,2.37959192]
[1722231627058,0.00807,69850.0,69849.0,2.46759192]
[1722231627274,0.00807,69850.0,69849.0,2.72459192]
[1722231627484,0.00807,69850.0,69849.0,2.72659192]
[1722231627682,0.00807,69850.0,69849.0,2.74059192]
[1722231628106,0.00807,69850.0,69849.0,2.62459192]
[1722231628324,0.00807,69850.0,69849.0,2.62259192]
[1722231628585,0.00807,69850.0,69849.0,2.67259192]
[1722231628990,0.00807,69850.0,69849.0,2.53459192]
[1722231629215,0.00807,69850.0,69849.0,2.68859192]
[1722231629410,0.00807,69850.0,69849.0,2.569577]
[1722231629592,0.00807,69850.0,69849.0,2.68858638]
[1722231629796,0.00807,69850.0,69849.0,2.27952138]
[1722231630104,0.00807,69850.0,69849.0,2.22552138]
[1722231630531,0.00807,69850.0,69849.0,2.36552138]
[1722231630703,0.00807,69850.0,69849.0,2.58058638]
[1722231630903,0.00807,69850.0,69849.0,2.44058638]
[1722231631130,0.00807,69852.0,69851.0,1.467761]
[1722231631331,0.00807,69852.0,69851.0,2.390529]
[1722231631745,0.00780014,69852.0,69851.0,2.480529]
[1722231632349,0.00780014,69852.0,69851.0,2.478529]
[1722231633481,0.00780014,69852.0,69851.0,2.62353714]
[1722231633682,0.00780014,69852.0,69851.0,2.69953714]
[1722231634038,0.00780014,69852.0,69851.0,2.71353714]
[1722231634246,0.00780014,69852.0,69851.0,2.69953714]
[1722231634644,0.00780014,69852.0,69851.0,2.62153714]
[1722231635028,0.00780014,69852.0,69851.0,2.62153515]
[1722231635232,0.00780014,69852.0,69851.0,2.62353515]
[1722231635485,0.00780014,69852.0,69851.0,2.62153515]
[1722231635829,0.00780014,69852.0,69851.0,2.63553515]
[1722231636177,0.00780014,69852.0,69851.0,2.62153515]
[1722231637622,0.00780014,69852.0,69851.0,2.53353515]
[1722231638837,0.00780014,69852.0,69851.0,2.62353515]
[1722231639039,0.00780014,69852.0,69851.0,2.63553515]
[1722231639191,0.00780014,69852.0,69851.0,2.54753305]
[1722231639397,0.00780014,69852.0,69851.0,2.56153305]
[1722231639841,0.00780014,69852.0,69851.0,2.54753305]
[1722231640014,0.00780014,69852.0,69851.0,2.56153305]
[1722231640883,0.00780014,69852.0,69851.0,2.64953305]
[1722231641400,0.00780014,69852.0,69851.0,2.56153305]
[1722231642010,0.0157211,69855.0,69854.0,0.047]
[1722231642179,0.00017293,69860.0,69859.0,0.161516]
[1722231642319,0.00017293,69860.0,69859.0,1.61686]
[1722231642523,0.00017293,69860.0,69859.0,2.19392201]
[1722231642779,0.00017293,69860.0,69859.0,2.42295401]
[1722231643023,0.00017293,69860.0,69859.0,2.42294912]
[1722231643226,0.00017293,69860.0,69859.0,2.15771712]
[1722231644809,0.00017293,69860.0,69859.0,2.152724]
[1722231645012,0.00017293,69860.0,69859.0,2.27171749]
[1722231645569,0.00017293,69860.0,69859.0,2.27171705]
[1722231645779,0.00017293,69860.0,69859.0,2.28571705]
[1722231646178,0.00017293,69860.0,69859.0,2.27371705]
[1722231646769,0.00017293,69860.0,69859.0,2.28571705]
[1722231646975,0.00017293,69860.0,69859.0,2.12031705]
[1722231647176,0.00017293,69860.0,69859.0,2.084124]
[1722231647579,0.00017293,69860.0,69859.0,1.906324]
[1722231647580,0.07171648,69860.0,69859.0,1.906324]
[1722231647784,0.07171648,69860.0,69859.0,1.989124]
[1722231648034,0.07171648,69860.0,69859.0,1.99780247]
[1722231651058,0.15261648,69860.0,69859.0,1.99780247]
[1722231652463,0.15261648,69860.0,69859.0,2.05518647]
[1722231653066,0.15261648,69860.0,69859.0,2.01518647]
[1722231653266,0.08107293,69860.0,69859.0,2.05518647]
[1722231653671,0.08107293,69860.0,69859.0,2.01518647]
[1722231654888,0.08107293,69860.0,69859.0,2.05518647]
[1722231655130,0.00017293,69860.0,69859.0,2.35518647]
[1722231655332,0.00017293,69860.0,69859.0,2.4741827]
[1722231656156,0.00017293,69860.0,69859.0,2.4341827]
[1722231656485,0.00017293,69860.0,69859.0,2.4741827]
[1722231657630,0.00017293,69860.0,69859.0,2.3196667]
[1722231657869,0.00017293,69860.0,69859.0,2.4341827]
[1722231658499,0.00017293,69860.0,69859.0,2.43418074]
[1722231658919,0.00017293,69860.0,69859.0,2.48118074]
[1722231659116,0.00017293,69860.0,69859.0,2.52118074]
[1722231660377,0.00017293,69860.0,69859.0,2.48118074]
[1722231661110,0.00017293,69860.0,69859.0,2.36218647]
[1722231661324,0.00017293,69860.0,69859.0,2.48118098]
[1722231661530,0.00017293,69860.0,69859.0,2.52118098]
[1722231661772,0.00017293,69860.0,69859.0,2.52118111]
[1722231661979,0.0603,69865.0,69864.0,0.924356]
[1722231662153,0.0603,69865.0,69864.0,1.632016]
[1722231662357,0.0797,69867.0,69866.0,0.841531]
[1722231662565,0.00807,69870.0,69869.0,0.431498]
[1722231662789,0.00807,69870.0,69869.0,2.51470922]
[1722231662970,0.00807,69875.0,69874.0,0.959457]
[1722231663169,0.00807,69875.0,69874.0,2.52481822]
[1722231663370,0.0821,69883.0,69882.0,0.612392]
[1722231663549,0.00807,69886.0,69885.0,0.38342]
[1722231663743,0.00807,69886.0,69885.0,0.924114]
[1722231663988,0.00807,69886.0,69885.0,1.631684]
[1722231664212,0.00807,69886.0,69885.0,1.741484]
[1722231664346,0.00807,69894.0,69893.0,0.15446]
[1722231664547,0.13127355,69894.0,69893.0,0.74754]
[1722231664800,0.51755411,69894.0,69893.0,0.74754]
[1722231665022,0.59800589,69894.0,69893.0,0.74754]
[1722231665248,0.490747,69894.0,69893.0,0.74754]
[1722231665599,0.490747,69894.0,69893.0,0.70754]
[1722231666048,0.74249207,69894.0,69893.0,0.70754]
[1722231666242,0.74249207,69894.0,69871.0,0.228991]
[1722231666243,0.1474,69872.0,69871.0,0.457984]
[1722231666448,0.1474,69872.0,69871.0,0.57248]
[1722231666623,0.1494,69872.0,69871.0,0.67248]
[1722231666803,0.1494,69872.0,69871.0,0.769727]
[1722231667008,0.1494,69872.0,69871.0,0.669727]
[1722231667190,0.1474,69872.0,69871.0,0.669727]
[1722231667408,0.1474,69872.0,69871.0,0.85872]
[1722231667638,0.1474,69872.0,69871.0,0.629727]
[1722231668339,0.1474,69872.0,69871.0,0.669727]
[1722231668648,0.1494,69872.0,69871.0,0.440736]
[1722231668861,0.1494,69872.0,69871.0,0.468736]
[1722231669067,0.1494,69872.0,69871.0,0.35424]
[1722231669693,0.1474,69872.0,69871.0,0.468736]
[1722231669896,0.1474,69872.0,69871.0,0.428736]
[1722231670203,0.1474,69872.0,69871.0,0.35424]
[1722231670381,0.1474,69872.0,69871.0,0.468736]
[1722231670595,0.1474,69872.0,69871.0,0.697729]
[1722231670990,0.1494,69872.0,69871.0,0.468736]
[1722231671203,0.1474,69872.0,69871.0,0.468736]
[1722231671818,0.1474,69872.0,69871.0,0.35424]
[1722231672020,0.1494,69872.0,69871.0,0.35424]
[1722231672372,0.1474,69872.0,69871.0,0.35424]
[1722231672617,0.19029917,69872.0,69871.0,0.35424]
[1722231673101,0.1474,69872.0,69871.0,0.35424]
[1722231673317,0.1903057,69872.0,69871.0,0.35424]
[1722231673598,0.1903062,69872.0,69871.0,0.35424]
[1722231673796,0.1474,69872.0,69871.0,0.35424]
[1722231674431,0.492885,69872.0,69871.0,0.31424]
[1722231674709,0.5572528,69872.0,69871.0,0.31424]
[1722231674938,0.3262628,69872.0,69871.0,0.31424]
[1722231675531,0.1474,69872.0,69871.0,0.31424]
[1722231675823,0.261895,69872.0,69871.0,0.31424]
[1722231675987,0.261895,69872.0,69871.0,0.30024]
[1722231676194,0.36917489,69872.0,69871.0,0.28624]
[1722231676386,0.36917595,69872.0,69871.0,0.30024]
[1722231676607,0.36917595,69872.0,69871.0,0.31424]
[1722231677010,0.490885,69872.0,69871.0,0.31424]
[1722231677185,0.36918067,69872.0,69871.0,0.31424]
[1722231677812,0.59817067,69872.0,69871.0,0.31424]
[1722231678211,0.60017067,69872.0,69871.0,0.31424]
[1722231678411,0.261895,69872.0,69871.0,0.31424]
[1722231678874,0.36918741,69872.0,69871.0,0.31424]
[1722231679580,0.3691878,69872.0,69871.0,0.31424]
[1722231679783,0.36918682,69872.0,69871.0,0.31424]
[1722231679985,0.490885,69872.0,69871.0,0.31424]
[1722231680284,0.59817682,69872.0,69871.0,0.31424]
[1722231681140,0.60017682,69872.0,69871.0,0.31424]
[1722231681351,0.59817682,69872.0,69871.0,0.31424]
[1722231681571,0.36918682,69872.0,69871.0,0.35424]
[1722231681806,0.06437084,69875.0,69873.0,0.154493]
[1722231682024,0.04291001,69883.0,69882.0,0.228957]
[1722231682241,0.04290724,69885.0,69884.0,0.04]
[1722231682451,0.003,69892.0,69891.0,0.04]
[1722231682687,0.003,69892.0,69891.0,0.612317]
[1722231683315,0.003,69892.0,69891.0,0.898477]
[1722231683522,0.005,69892.0,69891.0,0.898477]
[1722231683738,0.003,69892.0,69891.0,0.858477]
[1722231684231,0.00789707,69894.0,69893.0,0.612302]
[1722231684458,0.00789707,69894.0,69893.0,1.127373]
[1722231686103,0.00789707,69894.0,69893.0,1.139373]
[1722231687755,0.00789707,69894.0,69893.0,1.153373]
[1722231688647,0.00789707,69894.0,69893.0,1.113373]
[1722231689650,0.00789707,69894.0,69893.0,0.924452]
[1722231689857,0.08789707,69894.0,69893.0,0.924452]
[1722231690054,0.15939707,69894.0,69893.0,0.46661]
[1722231690509,0.09289707,69894.0,69893.0,0.655531]
[1722231690728,0.09289707,69894.0,69893.0,0.695531]
[1722231693478,0.09289707,69894.0,69893.0,0.655531]
[1722231693620,0.09089707,69894.0,69893.0,0.655531]
[1722231693823,0.09289707,69894.0,69893.0,0.695531]
[1722231696415,0.13181639,69897.0,69895.0,0.228914]
[1722231696650,0.13181639,69897.0,69896.0,0.629506]
[1722231696853,0.13181639,69897.0,69896.0,0.858417]
[1722231696978,0.13181639,69897.0,69896.0,0.669506]
[1722231697378,0.07171639,69897.0,69896.0,0.898417]
[1722231697826,0.07171639,69897.0,69896.0,0.669506]
[1722231698014,0.07171639,69897.0,69896.0,0.682506]
[1722231698353,0.07171639,69897.0,69896.0,0.911417]
[1722231698509,0.07171639,69897.0,69896.0,0.682506]
[1722231699350,0.07171639,69897.0,69896.0,0.453595]
[1722231699549,0.07171639,69897.0,69896.0,0.911417]
[1722231700608,0.07171639,69897.0,69896.0,0.682506]
[1722231700792,0.07171639,69897.0,69896.0,0.642506]
[1722231700993,0.07171639,69897.0,69896.0,0.453595]
[1722231701240,0.07171639,69897.0,69896.0,0.33914]
[1722231701684,0.07171639,69897.0,69896.0,0.453595]
[1722231701854,0.07171639,69897.0,69896.0,0.33914]
[1722231702015,0.07171639,69897.0,69896.0,0.453595]
[1722231703027,0.07171639,69897.0,69896.0,0.682506]
[1722231703244,0.07171639,69897.0,69896.0,0.453595]
[1722231703480,0.07171639,69897.0,69896.0,0.413595]
[1722231703682,0.07171639,69897.0,69896.0,0.691506]
[1722231703858,0.07171639,69897.0,69896.0,0.651506]
[1722231704179,0.07171639,69897.0,69896.0,0.462595]
[1722231704627,1e-06,69900.0,69899.0,1.678754]
[1722231704823,0.00807,69915.0,69914.0,0.530878]
[1722231704968,0.00807,69915.0,69914.0,0.840982]
[1722231705176,0.00807,69915.0,69914.0,0.8982]
[1722231705389,0.00807,69915.0,69914.0,0.669348]
[1722231705732,0.00807,69915.0,69914.0,0.8982]
[1722231705941,0.00807,69915.0,69914.0,0.9122]
[1722231706498,0.00807,69915.0,69914.0,0.8722]
[1722231706728,0.00807,69915.0,69914.0,1.101052]
[1722231707083,0.00807,69915.0,69914.0,1.769604]
[1722231707284,0.00807,69918.0,69917.0,0.981425]
[1722231707505,0.00807,69918.0,69917.0,1.72945751]
[1722231707708,0.00807,69918.0,69917.0,2.23467572]
[1722231707927,0.00807,69918.0,69917.0,2.48451772]
[1722231708115,0.00745402,69924.0,69923.0,1.1707]
[1722231708316,0.000389,69949.0,69935.0,1.157194]
[1722231708666,0.07154355,69946.0,69935.0,2.07666794]
[1722231708846,0.07154355,69946.0,69935.0,2.08638745]
[1722231709047,0.07154355,69946.0,69935.0,2.35031838]
[1722231709283,0.09141208,69936.0,69935.0,2.38638745]
[1722231709493,0.09141208,69936.0,69935.0,2.1691757]
[1722231709693,0.09141208,69936.0,69935.0,1.30922]
[1722231710012,0.09141208,69936.0,69935.0,1.22672]
[1722231710632,0.09141208,69936.0,69935.0,1.44362]
[1722231710840,0.09141208,69936.0,69935.0,1.59472]
[1722231711527,0.09141208,69936.0,69935.0,1.60872]
[1722231712179,0.09141208,69936.0,69935.0,1.823503]
[1722231712497,0.09141208,69936.0,69935.0,1.60872]
[1722231712638,0.09141208,69936.0,69935.0,1.64872]
[1722231712857,0.09141208,69936.0,69935.0,1.60872]
[1722231714117,0.09141208,69936.0,69935.0,1.40182]
[1722231714337,0.09141208,69936.0,69935.0,1.41582]
[1722231714542,0.09141208,69936.0,69935.0,1.40182]
[1722231714727,0.09141208,69936.0,69935.0,1.41582]
[1722231714922,0.09141208,69936.0,69935.0,1.630603]
[1722231715519,0.09141208,69936.0,69935.0,1.40182]
[1722231715723,0.09141208,69936.0,69935.0,1.29072]
[1722231715942,0.09141208,69936.0,69935.0,1.24072]
[1722231716157,0.09141208,69936.0,69935.0,1.22672]
[1722231716362,0.09141208,69936.0,69935.0,1.24072]
[1722231716775,0.09141208,69936.0,69935.0,1.258041]
[1722231716975,0.09141208,69936.0,69935.0,0.840475]
[1722231717178,0.09141208,69936.0,69935.0,0.29998]
[1722231717179,0.20580208,69936.0,69935.0,0.29998]
[1722231717377,0.43458208,69936.0,69935.0,0.29998]
[1722231717581,0.20580208,69936.0,69935.0,0.31398]
[1722231717752,0.43458208,69936.0,69935.0,0.33998]
[1722231718340,0.09141208,69936.0,69935.0,0.33998]
[1722231718485,0.09141208,69936.0,69935.0,0.32598]
[1722231718692,0.09141208,69936.0,69935.0,0.33998]
[1722231718888,0.20580208,69936.0,69935.0,0.34898]
[1722231719068,0.09141208,69936.0,69935.0,0.33498]
[1722231719274,0.20580208,69936.0,69935.0,0.33498]
[1722231719471,0.09141208,69936.0,69935.0,0.33998]
[1722231719823,0.09141208,69936.0,69935.0,0.454371]
[1722231720230,0.09225208,69936.0,69935.0,0.683154]
[1722231720561,0.09225208,69936.0,69935.0,0.454371]
[1722231720767,0.09225208,69936.0,69935.0,0.643154]
[1722231721005,0.09225208,69936.0,69935.0,0.683154]
[1722231721864,0.09225208,69936.0,69935.0,0.454371]
[1722231722066,0.09225208,69936.0,69935.0,0.683154]
[1722231722298,0.09225208,69936.0,69935.0,0.678154]